fUSD/lending_fUSD_20251214
["ID","MTS","AMOUNT","RATE_DAILY","PERIOD"]
[398470099,1765698632279,-500.0,0.00016499,2]
[398470100,1765698632288,-500.0,0.00016499,2]
[398470101,1765698632297,-500.0,0.00016499,2]
[398470102,1765698632306,-334.53711069,0.00016499,2]
[398470103,1765698632316,-500.0,0.00016499,2]
[398470104,1765698632326,-500.0,0.00016499,2]
[398470105,1765698632335,-500.0,0.00016499,2]
[398470106,1765698632345,-500.0,0.00016499,2]
[398470107,1765698632355,-500.0,0.00016499,2]
[398470108,1765698632365,-500.0,0.00016499,2]
[398470109,1765698632374,-500.0,0.00016499,2]
[398470110,1765698632383,-500.0,0.00016499,2]
[398470111,1765698632393,-500.0,0.00016499,2]
[398470112,1765698632401,-500.0,0.00016499,2]
[398470113,1765698632411,-628.72680997,0.00016499,2]
[398470114,1765698632420,-500.0,0.00016499,2]
[398470116,1765698632430,-500.0,0.00016499,2]
[398470118,1765698632439,-2.15804221,0.00016499,2]
[398470120,1765698632451,-497.84195779,0.00016499,2]
[398470122,1765698632461,-500.0,0.00016499,2]
[398470124,1765698632470,-500.0,0.00016499,2]
[398470126,1765698632479,-500.0,0.00016499,2]
[398470128,1765698632488,-500.0,0.00016499,2]
[398470130,1765698632497,-500.0,0.00016499,2]
[398470132,1765698632506,-253.00754372,0.00016499,2]
[398470134,1765698632517,-246.99245628,0.00016499,2]
[398470136,1765698632526,-32.24672128,0.00016499,2]
[398470139,1765698632541,-467.75327872,0.00016499,2]
[398470141,1765698632550,-261.16321275,0.00016499,2]
[398470161,1765698638287,-238.83678725,0.00016499,2]
[398470162,1765698638297,-134.54412833,0.00016499,2]
[398470163,1765698638309,-365.45587167,0.00016499,2]
[398470164,1765698638319,-500.0,0.00016499,2]
[398470165,1765698638328,-500.0,0.00016499,2]
[398470166,1765698638338,-500.0,0.00016499,2]
[398470167,1765698638348,-630.65458837,0.00016499,2]
[398470168,1765698638357,-500.0,0.00016499,2]
[398470170,1765698638367,-500.0,0.00016499,2]
[398470172,1765698638376,-500.0,0.00016499,2]
[398470174,1765698638385,-500.0,0.00016499,2]
[398470176,1765698638394,-500.0,0.00016499,2]
[398470177,1765698638403,-500.0,0.00016499,2]
[398470179,1765698638413,-500.0,0.00016499,2]
[398470181,1765698638422,-500.0,0.00016499,2]
[398470183,1765698638431,-500.0,0.00016499,2]
[398470185,1765698638440,-500.0,0.00016499,2]
[398470187,1765698638450,-500.0,0.00016499,2]
[398470189,1765698638459,-500.0,0.00016499,2]
[398470191,1765698638468,-572.83,0.00016499,2]
[398470193,1765698638477,-25214.88474702,0.000165,2]
[398470196,1765698638492,-364.62558281,0.000165,2]
[398470292,1765698640155,-3744.725876,0.000165,2]
[398470293,1765698640167,-303.24978,0.000165,2]
[398470294,1765698640323,-2561.99998,0.000165,2]
[398470295,1765698640577,-10909.43677856,0.000165,2]
[398470296,1765698640589,-34967.05821453,0.000165,2]
[398470297,1765698640600,-596.43523971,0.000165,2]
[398470298,1765698640611,-555.4,0.000165,2]
[398470299,1765698640625,-659.53743416,0.000165,2]
[398470314,1765698643490,-234355.05241521,0.000165,2]
[398470315,1765698643501,-194.71258074,0.000165,2]
[398470316,1765698643511,-6032.49,0.00016543,2]
[398470317,1765698643522,-961.24,0.000166,2]
[398470318,1765698643533,-2260.70476854,0.00016604,2]
[398470319,1765698643543,-261.0,0.00016652,2]
[398470320,1765698643552,-228.88848825,0.00016659,2]
[398470321,1765698643562,-1219.0,0.00016662,2]
[398470322,1765698643572,-768.0,0.00016685,2]
[398470323,1765698643582,-178.21,0.000167,2]
[398470324,1765698643592,-300.0,0.00016703,2]
[398470325,1765698643602,-1523.0,0.00016712,2]
[398470326,1765698643612,-2260.70476854,0.00016766,2]
[398470327,1765698643623,-572.83,0.00016773,2]
[398470328,1765698643633,-1620.81394,0.0001683,2]
[398470329,1765698643643,-1486.304,0.00016833,2]
[398470330,1765698643653,-1523.0,0.00016849,2]
[398470331,1765698643663,-200.0,0.00016863,2]
[398470332,1765698643674,-177.01439783,0.000169,2]
[398470333,1765698643684,-1000.0,0.00016921,2]
[398470334,1765698643694,-279.39892373,0.00016921,2]
[398470335,1765698643704,-2260.70476854,0.00016928,2]
[398470336,1765698643714,-481.15230225,0.00016944,2]
[398470337,1765698643725,-500.0,0.00016973,2]
[398470338,1765698643735,-500.0,0.00016973,2]
[398470339,1765698643746,-500.0,0.00016973,2]
[398470340,1765698643757,-3193.35282075,0.00016976,2]
[398470341,1765698643767,-2378.1654563,0.00016985,2]
[398470342,1765698643777,-2105.1938882,0.00016985,2]
[398470343,1765698643788,-1804.8785154,0.00016985,2]
[398470344,1765698643798,-1708.4557703,0.00016985,2]
[398470345,1765698643808,-1523.0,0.00016986,2]
[398470346,1765698643818,-189050.87009428,0.00016999,2]
[398470347,1765698643835,-304.57654823,0.00016999,2]
[398470348,1765698643847,-1243.86456691,0.00016999,2]
[398470355,1765698646847,-2395.226691,0.00016416,2]
[398470356,1765698646858,-165.23217086,0.00016442,2]
[398470357,1765698646869,-2439.47612864,0.00016999,2]
[398470362,1765698677948,1098.0,0.00015417,2]
[398470363,1765698679209,-221.33988607,0.00015873,2]
[398470365,1765698682781,1098.0,0.00015417,2]
[398470368,1765698684227,-244.71974984,0.00015873,2]
[398470369,1765698687876,-157.39716061,0.00015873,2]
[398470370,1765698687943,1098.0,0.00015417,2]
[398470371,1765698692375,1098.0,0.00015417,2]
[398470372,1765698697539,344.96859369,0.00015417,2]
[398470378,1765698779333,1000.0,0.00013699,2]
[398470404,1765699206482,-283.0,0.00015873,2]
[398470405,1765699206507,-200.00513668,0.00015873,2]
[398470407,1765699208178,-176.79085859,0.00015873,2]
[398470429,1765699457543,165.24,0.00012693,2]
[398470430,1765699461554,-165.24,0.00015866,2]
[398470431,1765699461576,-21.33435173,0.00015873,2]
[398470432,1765699518023,5736.27,0.000225,120]
[398470454,1765699832263,-76.41285648,0.00015873,2]
[398470455,1765699832273,-250.0,0.00016026,2]
[398470456,1765699832283,-350.30610633,0.00016299,2]
[398470457,1765699832294,-623.9999895,0.00016299,2]
[398470458,1765699832305,-225.69390417,0.00016299,2]
[398470459,1765699832314,-300.0,0.00016299,2]
[398470460,1765699832323,-5685.74357505,0.000163,2]
[398470461,1765699832334,-164.49442495,0.000163,2]
[398470462,1765699832343,-10007.0183,0.000163,2]
[398470463,1765699832353,-1395.16866244,0.00016338,2]
[398470464,1765699832362,-500.0,0.00016373,2]
[398470465,1765699832371,-500.0,0.00016373,2]
[398470466,1765699832381,-300.0,0.0001639,2]
[398470467,1765699832390,-422.0,0.00016398,2]
[398470468,1765699832405,-500.0,0.00016399,2]
[398470469,1765699832415,-500.0,0.00016399,2]
[398470470,1765699832425,-311.62775824,0.00016399,2]
[398470471,1765699832435,-500.0,0.00016399,2]
[398470472,1765699832444,-500.0,0.00016399,2]
[398470473,1765699832454,-500.0,0.00016399,2]
[398470474,1765699832465,-500.0,0.00016399,2]
[398470475,1765699832475,-500.0,0.00016399,2]
[398470476,1765699832484,-500.0,0.00016399,2]
[398470477,1765699832494,-500.0,0.00016399,2]
[398470478,1765699832504,-500.0,0.00016399,2]
[398470479,1765699832514,-500.0,0.00016399,2]
[398470480,1765699832524,-500.0,0.00016399,2]
[398470481,1765699832534,-500.0,0.00016399,2]
[398470482,1765699832544,-500.0,0.00016399,2]
[398470483,1765699832553,-500.0,0.00016399,2]
[398470484,1765699832563,-500.0,0.00016399,2]
[398470485,1765699832572,-500.0,0.00016399,2]
[398470486,1765699832587,-500.0,0.00016399,2]
[398470487,1765699832605,-500.0,0.00016399,2]
[398470488,1765699832619,-500.0,0.00016399,2]
[398470491,1765699832633,-500.0,0.00016399,2]
[398470495,1765699832649,-592.72634563,0.00016438,2]
[398470499,1765699832665,-398.6523413,0.00016438,2]
[398470504,1765699832686,-4940.1776587,0.00016438,2]
[398470508,1765699832700,-511.46971654,0.000165,2]
[398470512,1765699832712,-1395.16866237,0.00016512,2]
[398470517,1765699832729,-200.0,0.00016554,2]
[398470521,1765699832744,-300.32,0.000166,2]
[398470525,1765699832759,-165.21,0.000166,2]
[398470528,1765699832775,-150.0,0.000166,2]
[398470531,1765699832790,-282.78641963,0.00016652,2]
[398470534,1765699832809,-1129.21358037,0.00016652,2]
[398470537,1765699832825,-125.2045064,0.00016659,2]
[398470540,1765699832844,-27.3878191,0.00016659,2]
[398470543,1765699832861,-816.66331972,0.00016685,2]
[398470548,1765699832898,-398.33668028,0.00016685,2]
[398470551,1765699832910,-99.66331962,0.00016685,2]
[398470554,1765699832934,-310.5,0.00016685,2]
[398470751,1765699840142,-881.42399107,0.00016685,2]
[398470752,1765699840153,-103.58135168,0.00016685,2]
[398470753,1765699840163,-150.0,0.000167,2]
[398470754,1765699840173,-703.99,0.000167,2]
[398470755,1765699840182,-1407.72,0.000167,2]
[398470756,1765699840193,-1407.85,0.000167,2]
[398470757,1765699840202,-3524.6747466,0.00016706,2]
[398470758,1765699840212,-1098.0,0.00016709,2]
[398470759,1765699840222,-9043.6074281,0.00016712,2]
[398470760,1765699840231,-500.0,0.00016725,2]
[398470761,1765699840242,-150.0,0.00016725,2]
[398470762,1765699840252,-150.0,0.00016725,2]
[398470763,1765699840262,-1189.043,0.00016822,2]
[398470764,1765699840272,-1395.16866237,0.00016859,2]
[398470765,1765699840281,-500.0,0.00016862,2]
[398470766,1765699840291,-150.0,0.00016862,2]
[398470767,1765699840300,-611.0,0.00016863,2]
[398470769,1765699840309,-3451.0,0.00016863,2]
[398470770,1765699840319,-1264.878,0.00016863,2]
[398470771,1765699840329,-791.814,0.00016863,2]
[398470772,1765699840338,-1219.841,0.00016863,2]
[398470773,1765699840347,-911.0,0.00016863,2]
[398470774,1765699840357,-2426.0,0.00016863,2]
[398470775,1765699840366,-563.0,0.00016863,2]
[398470776,1765699840377,-4797.0,0.00016863,2]
[398470777,1765699840387,-200.0,0.00016863,2]
[398470778,1765699840398,-167.63064892,0.000169,2]
[398470779,1765699840409,-165.23217086,0.000169,2]
[398470780,1765699840419,-1000.0,0.00016921,2]
[398470781,1765699840428,-1000.0,0.00016921,2]
[398470782,1765699840438,-481.15230225,0.00016944,2]
[398470783,1765699840448,-500.0,0.00016973,2]
[398470784,1765699840459,-536.99658185,0.00016973,2]
[398470785,1765699840468,-500.0,0.00016973,2]
[398470786,1765699840478,-500.0,0.00016973,2]
[398470787,1765699840487,-500.0,0.00016973,2]
[398470788,1765699840497,-150.0,0.00016986,2]
[398470789,1765699840507,-150.0,0.00016986,2]
[398470790,1765699840516,-150.0,0.00016986,2]
[398470791,1765699840526,-164.69,0.0001699,2]
[398470792,1765699840535,-275.05900001,0.00016998,2]
[398470793,1765699840545,-447.55391011,0.00016998,2]
[398470794,1765699840555,-500.0,0.00016999,2]
[398470795,1765699840564,-200.0,0.00016999,2]
[398470796,1765699840574,-160.23855015,0.00016999,2]
[398470797,1765699840668,-564.79008252,0.00016999,2]
[398470798,1765699840680,-1874.10523767,0.00016999,2]
[398470799,1765699840691,-1076.03738421,0.00016999,2]
[398470800,1765699840702,-1076.0,0.00016999,2]
[398470801,1765699840713,-9066.66574271,0.00016999,2]
[398470802,1765699840724,-302.925003,0.00016999,2]
[398470808,1765699843347,-6521.0,0.00016863,2]
[398470809,1765699843357,-19473.08527592,0.00016999,2]
[398470810,1765699843367,-237.79626013,0.00016999,2]
[398470811,1765699843377,-600.0,0.00016999,2]
[398470812,1765699843387,-200.0,0.00016999,2]
[398470813,1765699843396,-500.0,0.00016999,2]
[398470814,1765699843406,-500.0,0.00016999,2]
[398470815,1765699843415,-500.0,0.00016999,2]
[398470816,1765699843424,-500.0,0.00016999,2]
[398470817,1765699843434,-157.0,0.00016999,2]
[398470818,1765699843444,-152.0,0.00016999,2]
[398470819,1765699843454,-157.0,0.00016999,2]
[398470820,1765699843463,-164.00901357,0.00016999,2]
[398470821,1765699843473,-153.0,0.00016999,2]
[398470822,1765699843483,-153.0,0.00016999,2]
[398470823,1765699843492,-177.757181,0.00016999,2]
[398470824,1765699843502,-177.757181,0.00016999,2]
[398470825,1765699843512,-177.757181,0.00016999,2]
[398470826,1765699843521,-177.757181,0.00016999,2]
[398470827,1765699843530,-151.0,0.00016999,2]
[398470828,1765699843539,-300.37633732,0.00016999,2]
[398470829,1765699843549,-152.0,0.00016999,2]
[398470830,1765699843559,-152.0,0.00016999,2]
[398470831,1765699843568,-152.0,0.00016999,2]
[398470832,1765699843577,-152.0,0.00016999,2]
[398470833,1765699843589,-282.63644827,0.00016999,2]
[398470834,1765699843599,-2116.18753,0.00016999,2]
[398470835,1765699843608,-162248.65187285,0.00017,2]
[398470836,1765699843620,-895.32391637,0.00017,2]
[398470838,1765699846368,-269.99999995,0.00017,2]
[398470839,1765699846380,-630.21210057,0.00017,2]
[398470840,1765699846515,-3259.2524884,0.00017,2]
[398470841,1765699846555,-262.9,0.00017,2]
[398470851,1765700016457,-166.66,0.00015783,2]
[398470852,1765700016479,-70.02624761,0.00015933,3]
[398470907,1765700820866,1000.0,0.00015657,2]
[398470918,1765701031442,-2493.21781416,0.00015842,2]
[398470919,1765701031453,-398.25218584,0.00015842,2]
[398470920,1765701031464,-250.0,0.00015887,2]
[398470921,1765701031475,-195.0,0.00015887,2]
[398470922,1765701031486,-928.97375239,0.00015933,3]
[398470923,1765701031496,-151.0,0.00016111,2]
[398470924,1765701031506,-156.587,0.00016111,2]
[398470925,1765701031517,-162.380719,0.00016111,2]
[398470926,1765701031526,-152.76382875,0.00016111,2]
[398470927,1765701031535,-166.66,0.00016115,2]
[398470928,1765701031546,-1200.0,0.00016198,2]
[398470929,1765701031555,-1200.0,0.00016199,2]
[398470930,1765701031565,-300.0,0.00016199,2]
[398470931,1765701031584,-150.0,0.000162,2]
[398470932,1765701031596,-5000.00194817,0.000162,5]
[398470933,1765701031606,-18901.6272,0.000162,2]
[398470934,1765701031617,-300.0,0.0001629,2]
[398470935,1765701031627,-166.14,0.00016293,2]
[398470936,1765701031637,-500.0,0.00016373,2]
[398470937,1765701031646,-353.66007049,0.00016373,2]
[398470938,1765701031655,-150.0,0.00016438,2]
[398470939,1765701031665,-166.66,0.00016448,2]
[398470940,1765701031675,-480.71,0.000165,2]
[398470941,1765701031687,-960.88,0.000165,2]
[398470942,1765701031696,-959.4,0.000165,2]
[398470943,1765701031707,-480.62,0.000165,2]
[398470944,1765701031719,-384.0,0.00016539,2]
[398470945,1765701031729,-500.0,0.0001654,2]
[398470946,1765701031739,-500.0,0.0001654,2]
[398470948,1765701031749,-500.0,0.0001654,2]
[398470949,1765701031758,-286.40117303,0.0001654,2]
[398470951,1765701031767,-500.0,0.0001654,2]
[398470953,1765701031776,-500.0,0.0001654,2]
[398470956,1765701031786,-500.0,0.0001654,2]
[398470957,1765701031795,-500.0,0.0001654,2]
[398470958,1765701031805,-477.01931409,0.0001654,2]
[398470959,1765701031815,-480.71,0.00016541,2]
[398470960,1765701031825,-227.65,0.00016647,2]
[398470961,1765701031835,-901.46256602,0.0001666,2]
[398470962,1765701031844,-214.0,0.00016704,2]
[398470963,1765701031854,-150.0,0.00016725,2]
[398470964,1765701031863,-150.0,0.00016725,2]
[398470965,1765701031873,-200.0,0.00016725,2]
[398470966,1765701031882,-257.32829514,0.00016725,2]
[398470967,1765701031891,-500.0,0.00016725,2]
[398470968,1765701031901,-500.0,0.00016725,2]
[398470969,1765701031911,-200.0,0.00016725,2]
[398470970,1765701031920,-150.0,0.00016725,2]
[398470971,1765701031930,-150.0,0.00016725,2]
[398470972,1765701031940,-260.48805469,0.00016742,2]
[398470973,1765701031949,-214.0,0.00016763,2]
[398470974,1765701031959,-350.0,0.00016772,2]
[398470975,1765701031969,-214.0,0.00016776,2]
[398470976,1765701031979,-166.66,0.0001678,2]
[398470977,1765701031988,-214.0,0.00016795,2]
[398470978,1765701031998,-1000.0,0.000168,2]
[398470979,1765701032007,-2500.0,0.000168,2]
[398470980,1765701032017,-2152.48496,0.0001683,2]
[398470981,1765701032027,-1415.704,0.00016836,2]
[398470982,1765701032038,-543.65,0.00016842,2]
[398470983,1765701032049,-214.0,0.00016853,2]
[398470984,1765701032058,-214.0,0.0001686,2]
[398470985,1765701032068,-500.0,0.00016862,2]
[398470986,1765701032079,-500.0,0.00016862,2]
[398470987,1765701032088,-150.0,0.00016862,2]
[398470988,1765701032097,-5976.38801006,0.000169,2]
[398470989,1765701034221,-574.6,0.000169,2]
[398470990,1765701034237,-458.44747329,0.000169,2]
[398470991,1765701034253,-502.88313328,0.000169,2]
[398470992,1765701034270,-13820.68743986,0.000169,2]
[398470995,1765701037734,-1180.08137866,0.000169,2]
[398470996,1765701037759,-2759.5520358,0.000169,2]
[398471015,1765701039469,-386.33547934,0.00016799,2]
[398471016,1765701039482,-3414.46058408,0.000169,2]
[398471018,1765701039535,-2664.66024497,0.000169,2]
[398471019,1765701039547,-888.13219486,0.000169,2]
[398471020,1765701039559,-4485.52389373,0.000169,2]
[398471021,1765701039571,-1000.0,0.00016921,2]
[398471022,1765701039583,-481.15230225,0.0001695,2]
[398471023,1765701039595,-1000.0,0.0001697,2]
[398471024,1765701039606,-1000.0,0.0001697,2]
[398471025,1765701039618,-1963.08234773,0.0001697,2]
[398471026,1765701039631,-500.0,0.0001697,2]
[398471027,1765701039642,-1000.0,0.0001697,2]
[398471028,1765701039654,-500.0,0.00016973,2]
[398471029,1765701039666,-500.0,0.00016973,2]
[398471030,1765701039679,-500.0,0.00016973,2]
[398471031,1765701039691,-225.37731163,0.00016973,2]
[398471032,1765701039702,-214.0,0.00016974,2]
[398471033,1765701039714,-1261.0,0.00016976,2]
[398471034,1765701039725,-642.0,0.00016976,2]
[398471035,1765701039737,-911.0,0.00016976,2]
[398471036,1765701039749,-1196.0,0.00016976,2]
[398471037,1765701039761,-611.0,0.00016976,2]
[398471038,1765701039772,-1335.752,0.00016976,2]
[398471039,1765701039784,-791.81145716,0.00016976,2]
[398471040,1765701039799,-815.18854284,0.00016976,2]
[398471041,1765701039810,-202.9051923,0.00016983,2]
[398471042,1765701039824,-6677.39055152,0.00016994,2]
[398471043,1765701039838,-2796.75706468,0.00016994,2]
[398471044,1765701039850,-961.9444632,0.00016994,2]
[398471045,1765701039861,-1746.65329582,0.00016995,2]
[398471046,1765701039883,-5281.31155515,0.00016995,2]
[398471047,1765701039903,-3811.99460293,0.00016995,2]
[398471048,1765701039917,-153.138467,0.00016995,2]
[398471049,1765701039930,-151.0,0.00016995,2]
[398471050,1765701039944,-151.0,0.00016995,2]
[398471051,1765701039957,-151.0,0.00016995,2]
[398471052,1765701039970,-151.0,0.00016995,2]
[398471055,1765701039983,-151.0,0.00016995,2]
[398471057,1765701039995,-151.0,0.00016995,2]
[398471059,1765701040010,-151.0,0.00016996,2]
[398471061,1765701040023,-500.0,0.00016999,2]
[398471062,1765701040036,-589.0,0.00016999,2]
[398471063,1765701040048,-200.0,0.00016999,2]
[398471064,1765701040061,-500.0,0.00016999,2]
[398471065,1765701040074,-359.61469381,0.00016999,2]
[398471066,1765701040088,-18665.94898041,0.00017,2]
[398471067,1765701040126,-568.0147105,0.00017,2]
[398471068,1765701040198,-2418.0,0.00017,2]
[398471069,1765701040215,-4133.84343981,0.00017,2]
[398471125,1765701047510,-600.97504401,0.0001666,2]
[398471126,1765701047519,-225.07495499,0.00016976,2]
[398471127,1765701047529,-4571.92504501,0.00016976,2]
[398471128,1765701047540,-313.28773707,0.00016989,2]
[398471129,1765701047550,-27432.89078135,0.00017,2]
[398471130,1765701047885,-2056.0821,0.00017,2]
[398471131,1765701048008,-81414.48220872,0.00017,2]
[398471132,1765701048024,-3547.43151558,0.00017,2]
[398471133,1765701207798,1534.81340157,0.00021978,30]
[398471134,1765701459677,1000.0,0.00013699,2]
[398471151,1765701811765,-200.0,0.00015875,2]
[398471152,1765701811785,-250.0,0.00015888,2]
[398471153,1765701811804,-250.0,0.00015902,2]
[398471154,1765701811823,-283.0,0.00015902,2]
[398471155,1765701811843,-1200.0,0.00015967,2]
[398471156,1765701811865,-300.0,0.00015967,2]
[398471157,1765701811885,-300.0,0.00015967,2]
[398471158,1765701811906,-7217.0,0.00015968,2]
[398471159,1765701816938,-10000.0,0.00015968,2]
[398471160,1765701823905,-878.0,0.00015968,2]
[398471161,1765701967084,207.0,9.989e-05,2]
[398471162,1765701967425,207.0,9.989e-05,2]
[398471163,1765701967744,207.0,9.989e-05,2]
[398471164,1765701968521,207.0,9.989e-05,2]
[398471165,1765701968844,207.0,9.989e-05,2]
[398471166,1765701969254,207.0,9.989e-05,2]
[398471181,1765702231593,-200.0,0.00015898,2]
[398471182,1765702231603,-1200.0,0.00015966,2]
[398471183,1765702231613,-300.0,0.00015966,2]
[398471184,1765702231622,-219.46687473,0.00015967,2]
[398471185,1765702231631,-196.13256283,0.00015967,2]
[398471186,1765702231640,-501.65512545,0.00015967,2]
[398471187,1765702231649,-5054.46433392,0.00015968,2]
[398471192,1765702237620,-1553.69,0.00015968,2]
[398471193,1765702237673,-780.26972114,0.00015968,2]
[398471194,1765702237684,-800.0,0.00015968,2]
[398471195,1765702237780,-300.6,0.00015968,2]
[398471196,1765702237887,-2424.24174609,0.00015968,2]
[398471197,1765702241249,-3090.73419885,0.00015968,2]
[398471198,1765702241258,-162.19,0.00016007,2]
[398471199,1765702241267,-659.94,0.00016048,2]
[398471200,1765702241276,-150.0,0.00016054,2]
[398471201,1765702241285,-550.81,0.00016137,2]
[398471202,1765702241294,-1111.0,0.00016149,2]
[398471203,1765702241303,-300.0,0.00016149,2]
[398471204,1765702241312,-150.0,0.000162,2]
[398471205,1765702241321,-500.0,0.00016373,2]
[398471206,1765702241330,-6059.22,0.00016438,2]
[398471207,1765702241339,-344.0,0.00016597,2]
[398471208,1765702241347,-152.73,0.0001666,2]
[398471209,1765702241356,-151.03,0.0001666,2]
[398471210,1765702241365,-778.663687,0.0001666,2]
[398471211,1765702241374,-219.30141595,0.00016699,2]
[398471212,1765702241383,-500.0,0.00016699,2]
[398471213,1765702241392,-500.0,0.00016699,2]
[398471214,1765702241400,-500.0,0.00016699,2]
[398471215,1765702241409,-625.10019623,0.00016699,2]
[398471216,1765702241418,-500.0,0.00016699,2]
[398471217,1765702241427,-500.0,0.00016699,2]
[398471218,1765702241436,-500.0,0.00016699,2]
[398471219,1765702241445,-500.0,0.00016699,2]
[398471220,1765702241454,-500.0,0.00016699,2]
[398471221,1765702241463,-500.0,0.00016699,2]
[398471222,1765702241472,-584.7930178,0.00016699,2]
[398471223,1765702241483,-500.0,0.00016699,2]
[398471224,1765702241492,-445.30088574,0.00016699,2]
[398471225,1765702241599,-54.69911426,0.00016699,2]
[398471226,1765702241608,-500.0,0.00016699,2]
[398471227,1765702241617,-500.0,0.00016699,2]
[398471228,1765702241626,-500.0,0.00016699,2]
[398471229,1765702241635,-500.0,0.00016699,2]
[398471230,1765702241645,-500.0,0.00016699,2]
[398471231,1765702241654,-500.0,0.00016699,2]
[398471232,1765702241663,-500.0,0.00016699,2]
[398471233,1765702241672,-500.0,0.00016699,2]
[398471234,1765702241681,-500.0,0.00016699,2]
[398471235,1765702241691,-500.0,0.00016699,2]
[398471236,1765702241700,-500.0,0.00016699,2]
[398471237,1765702241709,-500.0,0.00016699,2]
[398471238,1765702241718,-122.23938205,0.00016699,2]
[398471239,1765702241729,-377.76061795,0.00016699,2]
[398471240,1765702241738,-500.0,0.00016699,2]
[398471241,1765702241748,-500.0,0.00016699,2]
[398471242,1765702241757,-500.0,0.00016699,2]
[398471243,1765702241766,-348.94541645,0.00016699,2]
[398471244,1765702241777,-151.05458355,0.00016699,2]
[398471245,1765702241786,-500.0,0.00016699,2]
[398471246,1765702241795,-500.0,0.00016699,2]
[398471247,1765702241804,-500.0,0.00016699,2]
[398471248,1765702241812,-500.0,0.00016699,2]
[398471249,1765702241821,-500.0,0.00016699,2]
[398471250,1765702241830,-500.0,0.00016699,2]
[398471251,1765702241838,-500.0,0.00016699,2]
[398471252,1765702241847,-533.98854853,0.00016699,2]
[398471253,1765702241856,-500.0,0.00016699,2]
[398471254,1765702241865,-500.0,0.00016699,2]
[398471255,1765702241875,-255.34155237,0.00016699,2]
[398471256,1765702241884,-458.27,0.00016699,2]
[398471257,1765702241893,-244.65844763,0.00016699,2]
[398471258,1765702241902,-1217.27,0.000167,2]
[398471259,1765702241911,-3079.9779,0.000167,2]
[398471260,1765702241919,-1000.0,0.000167,2]
[398471261,1765702241928,-150.6,0.000167,2]
[398471262,1765702241937,-1216.94,0.000167,2]
[398471263,1765702241946,-480.62,0.000167,2]
[398471264,1765702241955,-1216.94,0.000167,2]
[398471265,1765702241964,-480.62,0.000167,2]
[398471266,1765702241973,-1216.94,0.000167,2]
[398471267,1765702241982,-480.62,0.000167,2]
[398471268,1765702241991,-1216.94,0.000167,2]
[398471269,1765702241999,-480.62,0.000167,2]
[398471270,1765702242008,-300.0,0.000167,2]
[398471271,1765702242017,-70918.63550674,0.000167,2]
[398471272,1765702242676,-1242.13822015,0.000167,2]
[398471273,1765702242688,-120409.56629703,0.000167,2]
[398471274,1765702242699,-661.84555687,0.000167,2]
[398471275,1765702242782,-11481.11060699,0.000167,2]
[398471276,1765702242795,-10687.62046423,0.000167,2]
[398471277,1765702242806,-368.14700699,0.000167,2]
[398471278,1765702242835,-132273.25993654,0.000167,2]
[398471279,1765702242848,-477.11038784,0.000167,2]
[398471280,1765702242890,-455.83943095,0.000167,2]
[398471281,1765702242944,-2448.77003185,0.000167,2]
[398471290,1765702245656,-356.18,0.000165,2]
[398471292,1765702246077,-55.74850172,0.000167,2]
[398471293,1765702246104,-1086.72827634,0.000167,2]